[Event "Late-Titled-Tuesday-Blitz-November-28-2023"]
[Site "Chess.com"]
[Date "2023.11.28"]
[Round "9"]
[White "eljanov"]
[Black "joppie2"]
[Result "0-1"]
[WhiteElo "2879"]
[BlackElo "3002"]
[TimeControl "180+1"]
[EndTime "15:40:39 PST"]
[Termination "joppie2 won on time"]

1. Nf3 {[%clk 0:03:00.9]} 1... d5 {[%clk 0:02:58.5]} 2. g3 {[%clk 0:03:01.4]}
2... Nd7 {[%clk 0:02:59]} 3. d4 {[%clk 0:03:00.9]} 3... Nb6 {[%clk 0:02:59.6]}
4. Nc3 {[%clk 0:03:00.3]} 4... h6 {[%clk 0:02:57.7]} 5. a4 {[%clk 0:02:57.8]}
5... a5 {[%clk 0:02:55.7]} 6. Ne5 {[%clk 0:02:53.6]} 6... Bf5 {[%clk 0:02:54]}
7. f3 {[%clk 0:02:53.4]} 7... Nf6 {[%clk 0:02:52]} 8. Bg2 {[%clk 0:02:48.5]}
8... e6 {[%clk 0:02:51.6]} 9. e4 {[%clk 0:02:48.8]} 9... Bh7 {[%clk 0:02:52]}
10. O-O {[%clk 0:02:45.3]} 10... Bb4 {[%clk 0:02:51.4]} 11. Ne2 {[%clk
0:02:18.6]} 11... O-O {[%clk 0:02:48.7]} 12. c3 {[%clk 0:02:17.3]} 12... Be7
{[%clk 0:02:49.3]} 13. exd5 {[%clk 0:01:59.8]} 13... exd5 {[%clk 0:02:43.4]} 14.
g4 {[%clk 0:01:59.8]} 14... Nc4 {[%clk 0:02:32.8]} 15. Ng3 {[%clk 0:01:54]}
15... Re8 {[%clk 0:02:13.6]} 16. f4 {[%clk 0:01:49.3]} 16... Nd6 {[%clk
0:02:08.8]} 17. g5 {[%clk 0:01:43.4]} 17... Nfe4 {[%clk 0:02:09.2]} 18. Qg4
{[%clk 0:01:33.9]} 18... f5 {[%clk 0:01:50.4]} 19. Qh5 {[%clk 0:01:19.2]} 19...
Kh8 {[%clk 0:01:41.2]} 20. Bxe4 {[%clk 0:01:12.2]} 20... dxe4 {[%clk 0:01:37.3]}
21. g6 {[%clk 0:01:08.2]} 21... Bg8 {[%clk 0:01:37.8]} 22. Nxf5 {[%clk
0:01:06.7]} 22... Nxf5 {[%clk 0:01:36.1]} 23. Qxf5 {[%clk 0:01:07]} 23... Bd5
{[%clk 0:01:25.9]} 24. Qh5 {[%clk 0:01:05.1]} 24... Kg8 {[%clk 0:01:10.6]} 25.
f5 {[%clk 0:01:02.8]} 25... Bf6 {[%clk 0:01:11]} 26. Ng4 {[%clk 0:01:02.4]}
26... e3 {[%clk 0:01:08.8]} 27. Bxe3 {[%clk 0:00:57.7]} 27... Qe7 {[%clk
0:01:08.2]} 28. Rf4 {[%clk 0:00:43.2]} 28... Bg5 {[%clk 0:01:00.5]} 29. f6
{[%clk 0:00:41.6]} 29... gxf6 {[%clk 0:00:56]} 30. Raf1 {[%clk 0:00:05.1]} 30...
f5 {[%clk 0:00:54.1]} 31. Bd2 {[%clk 0:00:02.5]} 31... fxg4 {[%clk 0:00:51.5]}
0-1

[Event "Late-Titled-Tuesday-Blitz-November-28-2023"]
[Site "Chess.com"]
[Date "2023.11.28"]
[Round "9"]
[White "SmirnovTimofey2000"]
[Black "Yushko_Olga"]
[Result "0-1"]
[WhiteElo "2042"]
[BlackElo "2143"]
[TimeControl "180+1"]
[EndTime "15:40:47 PST"]
[Termination "Yushko_Olga won on time"]

1. d4 {[%clk 0:02:56.5]} 1... e6 {[%clk 0:02:01.4]} 2. Bf4 {[%clk 0:02:53.2]}
2... f5 {[%clk 0:01:59.7]} 3. e3 {[%clk 0:02:52]} 3... Nf6 {[%clk 0:01:59.9]} 4.
Nf3 {[%clk 0:02:52]} 4... Be7 {[%clk 0:02:00.3]} 5. Nbd2 {[%clk 0:02:46]} 5...
O-O {[%clk 0:02:00.9]} 6. Be2 {[%clk 0:02:44]} 6... d6 {[%clk 0:02:01.4]} 7. c3
{[%clk 0:02:41.1]} 7... Qe8 {[%clk 0:02:01.9]} 8. Qc2 {[%clk 0:02:37.1]} 8...
Qg6 {[%clk 0:02:00]} 9. Rg1 {[%clk 0:02:26.3]} 9... Nc6 {[%clk 0:01:58.7]} 10.
O-O-O {[%clk 0:02:25.6]} 10... Ng4 {[%clk 0:01:52.3]} 11. Rdf1 {[%clk
0:02:17.9]} 11... e5 {[%clk 0:01:51.9]} 12. dxe5 {[%clk 0:02:17.8]} 12... dxe5
{[%clk 0:01:52]} 13. Bg3 {[%clk 0:01:59.9]} 13... e4 {[%clk 0:01:41.6]} 14. Nh4
{[%clk 0:01:56.2]} 14... Qg5 {[%clk 0:01:35.8]} 15. Bxg4 {[%clk 0:01:46.8]}
15... Qxg4 {[%clk 0:01:35.5]} 16. h3 {[%clk 0:01:35.5]} 16... Qh5 {[%clk
0:01:32.8]} 17. Qd1 {[%clk 0:01:23.4]} 17... Qh6 {[%clk 0:01:32.1]} 18. Qb3+
{[%clk 0:00:34.7]} 18... Kh8 {[%clk 0:01:30.5]} 19. Qd5 {[%clk 0:00:29.7]} 19...
Bxh4 {[%clk 0:01:27.9]} 20. Bxh4 {[%clk 0:00:29.8]} 20... Qxh4 {[%clk 0:01:28]}
21. g3 {[%clk 0:00:28.3]} 21... Qf6 {[%clk 0:01:26.3]} 22. g4 {[%clk 0:00:24.5]}
22... Be6 {[%clk 0:01:25.6]} 23. Qc5 {[%clk 0:00:18.9]} 23... Qe5 {[%clk
0:01:09.5]} 24. Qa3 {[%clk 0:00:16.3]} 24... f4 {[%clk 0:01:09.1]} 25. exf4
{[%clk 0:00:16.2]} 25... Rxf4 {[%clk 0:01:08.5]} 26. Re1 {[%clk 0:00:15.9]}
26... Qd6 {[%clk 0:01:04.3]} 27. Qa4 {[%clk 0:00:14.3]} 27... Ne5 {[%clk
0:01:00.4]} 28. Rxe4 {[%clk 0:00:13]} 28... Nd3+ {[%clk 0:00:59]} 29. Kb1 {[%clk
0:00:10.3]} 29... Nxf2 {[%clk 0:00:58.3]} 30. Rxf4 {[%clk 0:00:08.5]} 30... Qxd2
{[%clk 0:00:55.3]} 31. Rf1 {[%clk 0:00:05.7]} 31... Qd3+ {[%clk 0:00:54.3]} 32.
Ka1 {[%clk 0:00:04.3]} 32... Qxf1+ {[%clk 0:00:54.2]} 0-1

[Event "Late-Titled-Tuesday-Blitz-November-28-2023"]
[Site "Chess.com"]
[Date "2023.11.28"]
[Round "9"]
[White "ckgchess"]
[Black "Njal28"]
[Result "0-1"]
[WhiteElo "2876"]
[BlackElo "3013"]
[TimeControl "180+1"]
[EndTime "15:40:51 PST"]
[Termination "Njal28 won by checkmate"]

1. e4 {[%clk 0:03:00.9]} 1... e5 {[%clk 0:02:59.3]} 2. Nf3 {[%clk 0:03:01.2]}
2... Nc6 {[%clk 0:02:59.8]} 3. Bc4 {[%clk 0:03:01.9]} 3... Nf6 {[%clk
0:02:58.8]} 4. d3 {[%clk 0:03:02.3]} 4... d5 {[%clk 0:02:59]} 5. exd5 {[%clk
0:03:02.5]} 5... Nxd5 {[%clk 0:02:59.9]} 6. O-O {[%clk 0:03:03.1]} 6... Nb6
{[%clk 0:03:00.5]} 7. Bb3 {[%clk 0:03:00]} 7... Bg4 {[%clk 0:02:10.3]} 8. h3
{[%clk 0:02:58.6]} 8... Bh5 {[%clk 0:01:59]} 9. Re1 {[%clk 0:02:57.6]} 9... Be7
{[%clk 0:01:42.1]} 10. g4 {[%clk 0:02:45.7]} 10... Bg6 {[%clk 0:01:42]} 11. Nxe5
{[%clk 0:02:46.4]} 11... Nxe5 {[%clk 0:01:42.5]} 12. Rxe5 {[%clk 0:02:47.3]}
12... O-O {[%clk 0:01:42.9]} 13. Nc3 {[%clk 0:02:41.5]} 13... Kh8 {[%clk
0:01:42.5]} 14. Qf3 {[%clk 0:02:09.8]} 14... Bd6 {[%clk 0:01:32.3]} 15. Re1
{[%clk 0:02:08.8]} 15... f5 {[%clk 0:01:28.1]} 16. g5 {[%clk 0:02:09.3]} 16...
f4 {[%clk 0:01:22.8]} 17. h4 {[%clk 0:02:08.5]} 17... Nd7 {[%clk 0:01:23.2]} 18.
d4 {[%clk 0:01:57.3]} 18... c5 {[%clk 0:01:23.2]} 19. Re6 {[%clk 0:01:41.6]}
19... Bc7 {[%clk 0:01:13.5]} 20. Nd5 {[%clk 0:01:32.4]} 20... cxd4 {[%clk
0:01:04]} 21. Bxf4 {[%clk 0:00:43.4]} 21... Bxf4 {[%clk 0:01:02.7]} 22. Nxf4
{[%clk 0:00:44.3]} 22... Bf5 {[%clk 0:01:03.3]} 23. Rd6 {[%clk 0:00:35.2]} 23...
Ne5 {[%clk 0:01:01.7]} 24. Qd5 {[%clk 0:00:35.2]} 24... Nf3+ {[%clk 0:00:45.1]}
25. Kf1 {[%clk 0:00:22.6]} 25... Qe7 {[%clk 0:00:38.4]} 26. Ne6 {[%clk
0:00:20.3]} 26... Bh3+ {[%clk 0:00:28.8]} 27. Ke2 {[%clk 0:00:19.5]} 27... Rae8
{[%clk 0:00:29.7]} 28. Kd3 {[%clk 0:00:13.7]} 28... Bf5+ {[%clk 0:00:29.8]} 29.
Ke2 {[%clk 0:00:10.5]} 29... d3+ {[%clk 0:00:22.9]} 30. Kf1 {[%clk 0:00:11.1]}
30... Bh3# {[%clk 0:00:21.5]} 0-1

[Event "Late-Titled-Tuesday-Blitz-November-28-2023"]
[Site "Chess.com"]
[Date "2023.11.28"]
[Round "9"]
[White "bazar-wokzal"]
[Black "colegiodemadrid"]
[Result "1-0"]
[WhiteElo "2648"]
[BlackElo "2501"]
[TimeControl "180+1"]
[EndTime "15:40:53 PST"]
[Termination "bazar-wokzal won by resignation"]

1. e4 {[%clk 0:03:00.9]} 1... e5 {[%clk 0:02:59.2]} 2. Bc4 {[%clk 0:03:00.4]}
2... Nf6 {[%clk 0:02:59.4]} 3. d3 {[%clk 0:03:00.5]} 3... c6 {[%clk 0:02:57.4]}
4. Nf3 {[%clk 0:03:00.3]} 4... d6 {[%clk 0:02:56]} 5. O-O {[%clk 0:02:59.4]}
5... Be7 {[%clk 0:02:53.3]} 6. a4 {[%clk 0:02:59.2]} 6... O-O {[%clk 0:02:53.4]}
7. Nc3 {[%clk 0:02:59.1]} 7... Nbd7 {[%clk 0:02:53.6]} 8. h3 {[%clk 0:02:57.9]}
8... Nc5 {[%clk 0:02:53.7]} 9. Qe2 {[%clk 0:02:55.7]} 9... h6 {[%clk 0:02:50.8]}
10. d4 {[%clk 0:02:52.9]} 10... exd4 {[%clk 0:02:49.3]} 11. Nxd4 {[%clk
0:02:53.2]} 11... Re8 {[%clk 0:02:49.3]} 12. Bf4 {[%clk 0:02:39.5]} 12... Bf8
{[%clk 0:02:12.4]} 13. Bd3 {[%clk 0:02:36.7]} 13... Qb6 {[%clk 0:02:07.7]} 14.
a5 {[%clk 0:02:11.5]} 14... Qxb2 {[%clk 0:01:55.7]} 15. Qd2 {[%clk 0:01:55.5]}
15... Ncxe4 {[%clk 0:01:45.2]} 16. Bxe4 {[%clk 0:01:52.7]} 16... Nxe4 {[%clk
0:01:45.7]} 17. Nxe4 {[%clk 0:01:52.3]} 17... Rxe4 {[%clk 0:01:45]} 18. Be3
{[%clk 0:01:51.4]} 18... c5 {[%clk 0:00:58]} 19. Rfb1 {[%clk 0:01:48.6]} 19...
Rxd4 {[%clk 0:00:36.6]} 20. Rxb2 {[%clk 0:01:37.8]} 20... Rxd2 {[%clk
0:00:35.5]} 21. Bxd2 {[%clk 0:01:38]} 21... Rb8 {[%clk 0:00:34.1]} 22. Rab1
{[%clk 0:01:36]} 22... f6 {[%clk 0:00:28]} 23. Bf4 {[%clk 0:01:33.1]} 23... Kf7
{[%clk 0:00:27.9]} 24. f3 {[%clk 0:01:31.9]} 24... g5 {[%clk 0:00:23.2]} 25. Bg3
{[%clk 0:01:30.2]} 25... h5 {[%clk 0:00:23]} 26. h4 {[%clk 0:01:30.2]} 26... Be7
{[%clk 0:00:21.1]} 27. Kf2 {[%clk 0:01:28.6]} 27... Ke6 {[%clk 0:00:18.6]} 28.
c4 {[%clk 0:01:23.1]} 28... Kd7 {[%clk 0:00:18.7]} 29. Re2 {[%clk 0:01:17.2]}
29... Bd8 {[%clk 0:00:17.9]} 30. Rd1 {[%clk 0:01:13.2]} 30... Bc7 {[%clk
0:00:18.3]} 31. Rd5 {[%clk 0:01:11.1]} 31... gxh4 {[%clk 0:00:15.4]} 32. Bxd6
{[%clk 0:01:06]} 32... Bxd6 {[%clk 0:00:14]} 33. Red2 {[%clk 0:01:05.9]} 33...
Kc7 {[%clk 0:00:13.3]} 34. Rxd6 {[%clk 0:01:05.9]} 34... f5 {[%clk 0:00:13.7]}
35. Rh6 {[%clk 0:01:03.2]} 35... b5 {[%clk 0:00:13.9]} 36. Rh7+ {[%clk
0:00:59.5]} 36... Kc6 {[%clk 0:00:13.8]} 37. Rxa7 {[%clk 0:00:58.8]} 37... bxc4
{[%clk 0:00:12.3]} 38. Rc2 {[%clk 0:00:56.3]} 38... Be6 {[%clk 0:00:11.5]} 39.
Ra6+ {[%clk 0:00:55.6]} 39... Kd7 {[%clk 0:00:11.5]} 40. Rd2+ {[%clk 0:00:55.9]}
40... Ke7 {[%clk 0:00:10.9]} 41. Re2 {[%clk 0:00:56.3]} 41... c3 {[%clk
0:00:08]} 42. Raxe6+ {[%clk 0:00:55]} 1-0

[Event "Late-Titled-Tuesday-Blitz-November-28-2023"]
[Site "Chess.com"]
[Date "2023.11.28"]
[Round "9"]
[White "Abduzhaparov"]
[Black "Aradhya2000"]
[Result "0-1"]
[WhiteElo "2450"]
[BlackElo "2740"]
[TimeControl "180+1"]
[EndTime "15:40:58 PST"]
[Termination "Aradhya2000 won by resignation"]

1. Nf3 {[%clk 0:02:55.8]} 1... d5 {[%clk 0:02:59]} 2. c4 {[%clk 0:02:56.7]} 2...
d4 {[%clk 0:02:58.9]} 3. e3 {[%clk 0:02:56.7]} 3... c5 {[%clk 0:02:56.2]} 4. b4
{[%clk 0:02:57]} 4... dxe3 {[%clk 0:02:55]} 5. fxe3 {[%clk 0:02:57.9]} 5... cxb4
{[%clk 0:02:55.7]} 6. d4 {[%clk 0:02:58.3]} 6... g6 {[%clk 0:02:55.4]} 7. h4
{[%clk 0:02:57.8]} 7... Nf6 {[%clk 0:02:51.2]} 8. Bd3 {[%clk 0:02:56.7]} 8...
Bg7 {[%clk 0:02:48.1]} 9. a3 {[%clk 0:02:56.7]} 9... Nc6 {[%clk 0:02:40.7]} 10.
axb4 {[%clk 0:02:54]} 10... e5 {[%clk 0:02:34.6]} 11. d5 {[%clk 0:02:39.7]}
11... e4 {[%clk 0:02:31.7]} 12. dxc6 {[%clk 0:02:37.7]} 12... Qxd3 {[%clk
0:02:16]} 13. Qxd3 {[%clk 0:02:34.1]} 13... exd3 {[%clk 0:02:16.9]} 14. Ra3
{[%clk 0:02:28.9]} 14... bxc6 {[%clk 0:02:08.4]} 15. Rxd3 {[%clk 0:02:20.8]}
15... Bf5 {[%clk 0:01:57.6]} 16. e4 {[%clk 0:02:20.7]} 16... Nxe4 {[%clk
0:01:48.5]} 17. Nd4 {[%clk 0:02:10]} 17... Bd7 {[%clk 0:01:07.5]} 18. Bb2 {[%clk
0:01:45.8]} 18... O-O-O {[%clk 0:01:03.7]} 19. Nd2 {[%clk 0:01:38.1]} 19... Rhe8
{[%clk 0:00:58.5]} 20. O-O {[%clk 0:01:37.7]} 20... f5 {[%clk 0:00:21.7]} 21.
Nxe4 {[%clk 0:01:13.3]} 21... Rxe4 {[%clk 0:00:19.7]} 22. Nxc6 {[%clk
0:01:04.9]} 22... Bxc6 {[%clk 0:00:14.3]} 23. Rxd8+ {[%clk 0:01:03.6]} 23...
Kxd8 {[%clk 0:00:15.2]} 24. Bxg7 {[%clk 0:01:03.6]} 24... Rxc4 {[%clk
0:00:15.8]} 25. Bf8 {[%clk 0:00:59]} 25... Rxh4 {[%clk 0:00:14]} 26. Re1 {[%clk
0:00:54.2]} 26... Rg4 {[%clk 0:00:14.2]} 27. Re2 {[%clk 0:00:52.3]} 27... Kd7
{[%clk 0:00:13.7]} 28. Rd2+ {[%clk 0:00:52]} 28... Ke6 {[%clk 0:00:11.7]} 29.
Ra2 {[%clk 0:00:47.5]} 29... Kf7 {[%clk 0:00:07.5]} 30. Bc5 {[%clk 0:00:46.4]}
30... a6 {[%clk 0:00:07.6]} 31. Re2 {[%clk 0:00:40]} 31... Bb5 {[%clk
0:00:07.4]} 32. Re7+ {[%clk 0:00:36.9]} 32... Kg8 {[%clk 0:00:07.2]} 33. Re8+
{[%clk 0:00:33.1]} 33... Bxe8 {[%clk 0:00:06.7]} 0-1

[Event "Late-Titled-Tuesday-Blitz-November-28-2023"]
[Site "Chess.com"]
[Date "2023.11.28"]
[Round "9"]
[White "stasOR4ik"]
[Black "SergioMoralesG"]
[Result "1-0"]
[WhiteElo "2494"]
[BlackElo "2369"]
[TimeControl "180+1"]
[EndTime "15:41:06 PST"]
[Termination "stasOR4ik won on time"]

1. e4 {[%clk 0:03:00.9]} 1... c5 {[%clk 0:02:58.4]} 2. c3 {[%clk 0:03:00.2]}
2... Nf6 {[%clk 0:02:58.1]} 3. e5 {[%clk 0:03:00.5]} 3... Nd5 {[%clk 0:02:58.7]}
4. d4 {[%clk 0:03:01]} 4... cxd4 {[%clk 0:02:59.6]} 5. Nf3 {[%clk 0:03:01.2]}
5... e6 {[%clk 0:02:59.5]} 6. Qxd4 {[%clk 0:02:47.9]} 6... Nc6 {[%clk
0:02:57.9]} 7. Qe4 {[%clk 0:02:48]} 7... Be7 {[%clk 0:02:55.7]} 8. Bd3 {[%clk
0:02:45.7]} 8... f5 {[%clk 0:02:55.6]} 9. Qe2 {[%clk 0:02:38.4]} 9... Nf6 {[%clk
0:02:56.5]} 10. exf6 {[%clk 0:02:37.2]} 10... Bxf6 {[%clk 0:02:55.3]} 11. Bxf5
{[%clk 0:02:32]} 11... O-O {[%clk 0:02:54.9]} 12. Bc2 {[%clk 0:02:29.3]} 12...
e5 {[%clk 0:02:51.6]} 13. h4 {[%clk 0:02:20.7]} 13... d5 {[%clk 0:02:39.1]} 14.
Bb3 {[%clk 0:02:05]} 14... Bg4 {[%clk 0:02:35.2]} 15. Nbd2 {[%clk 0:01:47.4]}
15... Kh8 {[%clk 0:02:24.6]} 16. Qb5 {[%clk 0:01:38.5]} 16... e4 {[%clk
0:02:20.3]} 17. Nh2 {[%clk 0:01:18.2]} 17... Bh5 {[%clk 0:01:54.9]} 18. Qxd5
{[%clk 0:01:10.5]} 18... Bxh4 {[%clk 0:01:45.7]} 19. g3 {[%clk 0:01:04.7]} 19...
Qf6 {[%clk 0:01:08.3]} 20. Nxe4 {[%clk 0:00:55.2]} 20... Rae8 {[%clk 0:00:52.7]}
21. O-O {[%clk 0:00:53.4]} 21... Qg6 {[%clk 0:00:38.2]} 22. Ng5 {[%clk
0:00:31.9]} 22... Rf5 {[%clk 0:00:21.7]} 23. Nf7+ {[%clk 0:00:20.1]} 23... Rxf7
{[%clk 0:00:16.8]} 24. Qxf7 {[%clk 0:00:19.2]} 24... Bxg3 {[%clk 0:00:03.3]} 25.
fxg3 {[%clk 0:00:17.8]} 25... Qxg3+ {[%clk 0:00:01.1]} 26. Kh1 {[%clk
0:00:18.2]} 26... Bxf7 {[%clk 0:00:01.7]} 27. Bxf7 {[%clk 0:00:17]} 27... Rd8
{[%clk 0:00:02]} 28. Bf4 {[%clk 0:00:16]} 28... h6 {[%clk 0:00:02.5]} 29. Bxg3
{[%clk 0:00:15.9]} 1-0

[Event "Late-Titled-Tuesday-Blitz-November-28-2023"]
[Site "Chess.com"]
[Date "2023.11.28"]
[Round "9"]
[White "MKlose11"]
[Black "krzyzan94"]
[Result "1-0"]
[WhiteElo "2616"]
[BlackElo "2727"]
[TimeControl "180+1"]
[EndTime "15:41:11 PST"]
[Termination "MKlose11 won on time"]

1. e4 {[%clk 0:02:58.9]} 1... e5 {[%clk 0:02:57.6]} 2. Nf3 {[%clk 0:02:58.5]}
2... Nc6 {[%clk 0:02:57.4]} 3. d4 {[%clk 0:02:58.9]} 3... exd4 {[%clk 0:02:57]}
4. Bc4 {[%clk 0:02:56.4]} 4... Nf6 {[%clk 0:02:56]} 5. O-O {[%clk 0:02:56]} 5...
Nxe4 {[%clk 0:02:54.9]} 6. Re1 {[%clk 0:02:54.4]} 6... d5 {[%clk 0:02:54.4]} 7.
Bxd5 {[%clk 0:02:55.1]} 7... Qxd5 {[%clk 0:02:55]} 8. Nc3 {[%clk 0:02:55.7]}
8... Qa5 {[%clk 0:02:51.7]} 9. Nxe4 {[%clk 0:02:55.2]} 9... Be6 {[%clk 0:02:46]}
10. Neg5 {[%clk 0:02:54.9]} 10... O-O-O {[%clk 0:02:45.1]} 11. Nxe6 {[%clk
0:02:55]} 11... fxe6 {[%clk 0:02:43.2]} 12. Rxe6 {[%clk 0:02:55.9]} 12... Bd6
{[%clk 0:02:38.4]} 13. Bd2 {[%clk 0:02:54.8]} 13... Qh5 {[%clk 0:02:33.1]} 14.
h3 {[%clk 0:02:54.3]} 14... h6 {[%clk 0:02:30.6]} 15. Qe2 {[%clk 0:02:53.9]}
15... Rhf8 {[%clk 0:02:27.7]} 16. Re1 {[%clk 0:02:46.7]} 16... Qd5 {[%clk
0:02:26]} 17. b3 {[%clk 0:02:42.6]} 17... a6 {[%clk 0:02:20.4]} 18. Qe4 {[%clk
0:02:40.9]} 18... Qxe4 {[%clk 0:02:19.8]} 19. R6xe4 {[%clk 0:02:41.8]} 19... Bb4
{[%clk 0:02:13.7]} 20. Bxb4 {[%clk 0:02:25]} 20... Nxb4 {[%clk 0:02:14.6]} 21.
Nxd4 {[%clk 0:02:25.2]} 21... Rxd4 {[%clk 0:02:09.7]} 22. Rxd4 {[%clk
0:02:23.4]} 22... Nxc2 {[%clk 0:02:10.1]} 23. Ree4 {[%clk 0:02:23]} 23... Nxd4
{[%clk 0:02:10]} 24. Rxd4 {[%clk 0:02:23.9]} 24... Rf6 {[%clk 0:01:40.6]} 25. f4
{[%clk 0:02:21.6]} 25... c5 {[%clk 0:01:40.3]} 26. Re4 {[%clk 0:02:14.9]} 26...
Kd7 {[%clk 0:01:39.9]} 27. Kf2 {[%clk 0:02:14.1]} 27... b5 {[%clk 0:01:40.2]}
28. Ke3 {[%clk 0:02:13.7]} 28... a5 {[%clk 0:01:25.7]} 29. g4 {[%clk 0:02:12.4]}
29... Ra6 {[%clk 0:01:23.2]} 30. Re5 {[%clk 0:02:09.9]} 30... Kd6 {[%clk
0:01:23.1]} 31. Kd3 {[%clk 0:02:02.5]} 31... a4 {[%clk 0:01:22.7]} 32. Rf5
{[%clk 0:01:59.3]} 32... axb3 {[%clk 0:01:20.9]} 33. axb3 {[%clk 0:02:00.2]}
33... Ra3 {[%clk 0:01:18.1]} 34. Kc3 {[%clk 0:01:59.2]} 34... Ra2 {[%clk
0:01:05.4]} 35. Rf7 {[%clk 0:01:56.3]} 35... Rh2 {[%clk 0:01:05.3]} 36. Rxg7
{[%clk 0:01:55.2]} 36... Rxh3+ {[%clk 0:01:05.8]} 37. Kc2 {[%clk 0:01:52.4]}
37... b4 {[%clk 0:00:51.9]} 38. f5 {[%clk 0:01:47.2]} 38... Rf3 {[%clk
0:00:47.5]} 39. Rg6+ {[%clk 0:01:45.3]} 39... Ke5 {[%clk 0:00:47.7]} 40. Rxh6
{[%clk 0:01:46.2]} 40... Rf2+ {[%clk 0:00:44.9]} 41. Kd3 {[%clk 0:01:35]} 41...
Rf3+ {[%clk 0:00:44.1]} 42. Kc4 {[%clk 0:01:28.8]} 42... Rc3+ {[%clk 0:00:43.1]}
43. Kb5 {[%clk 0:01:29.1]} 43... Rxb3 {[%clk 0:00:28.7]} 44. Kxc5 {[%clk
0:01:27.7]} 44... Kf4 {[%clk 0:00:11.6]} 45. Rg6 {[%clk 0:01:19.1]} 45... Rb1
{[%clk 0:00:06.2]} 46. Kc4 {[%clk 0:01:19.3]} 46... b3 {[%clk 0:00:04.6]} 47.
Kc3 {[%clk 0:01:19.5]} 47... Ke5 {[%clk 0:00:02.9]} 48. Re6+ {[%clk 0:01:15.2]}
48... Kd5 {[%clk 0:00:03.4]} 49. Rg6 {[%clk 0:01:04.1]} 49... Ke5 {[%clk
0:00:01.9]} 50. f6 {[%clk 0:00:59.9]} 50... Rf1 {[%clk 0:00:01.3]} 51. g5 {[%clk
0:00:59.7]} 1-0

[Event "Late-Titled-Tuesday-Blitz-November-28-2023"]
[Site "Chess.com"]
[Date "2023.11.28"]
[Round "9"]
[White "TimGrutter03"]
[Black "Sic_Transit_GM"]
[Result "0-1"]
[WhiteElo "2546"]
[BlackElo "2707"]
[TimeControl "180+1"]
[EndTime "15:41:19 PST"]
[Termination "Sic_Transit_GM won by resignation"]

1. b3 {[%clk 0:02:57.3]} 1... g6 {[%clk 0:03:00.9]} 2. Bb2 {[%clk 0:02:57.6]}
2... Nf6 {[%clk 0:02:59.6]} 3. e4 {[%clk 0:02:56.5]} 3... Bg7 {[%clk 0:02:59]}
4. e5 {[%clk 0:02:56]} 4... Nd5 {[%clk 0:02:59.1]} 5. c4 {[%clk 0:02:55]} 5...
Nb6 {[%clk 0:02:59]} 6. a4 {[%clk 0:02:48.3]} 6... a5 {[%clk 0:02:58.5]} 7. d4
{[%clk 0:02:46.4]} 7... d6 {[%clk 0:02:58]} 8. Nf3 {[%clk 0:02:41.5]} 8... Bg4
{[%clk 0:02:57.2]} 9. Be2 {[%clk 0:02:40.8]} 9... Nc6 {[%clk 0:02:55]} 10. exd6
{[%clk 0:02:34.6]} 10... exd6 {[%clk 0:02:54.5]} 11. h3 {[%clk 0:02:32.6]} 11...
Bxf3 {[%clk 0:02:54.1]} 12. Bxf3 {[%clk 0:02:33.5]} 12... O-O {[%clk 0:02:48.8]}
13. O-O {[%clk 0:02:33.1]} 13... d5 {[%clk 0:02:48.9]} 14. c5 {[%clk 0:02:29.5]}
14... Nc8 {[%clk 0:02:48.8]} 15. Na3 {[%clk 0:02:18.8]} 15... N8e7 {[%clk
0:02:48]} 16. Nb5 {[%clk 0:02:18.2]} 16... Qd7 {[%clk 0:02:44.4]} 17. Bg4 {[%clk
0:02:17.1]} 17... f5 {[%clk 0:02:44]} 18. Bf3 {[%clk 0:02:17]} 18... Nd8 {[%clk
0:02:43.3]} 19. Re1 {[%clk 0:02:12.2]} 19... Bf6 {[%clk 0:02:32.3]} 20. Ba3
{[%clk 0:02:03.7]} 20... Nec6 {[%clk 0:02:26.4]} 21. Qd3 {[%clk 0:01:56.1]}
21... Rf7 {[%clk 0:02:18.4]} 22. Re2 {[%clk 0:01:40.2]} 22... Ne6 {[%clk
0:02:18.2]} 23. Bb2 {[%clk 0:01:33.4]} 23... Nf4 {[%clk 0:02:17.4]} 24. Qd2
{[%clk 0:01:33]} 24... Nxe2+ {[%clk 0:02:17.5]} 25. Qxe2 {[%clk 0:01:33.9]}
25... Re8 {[%clk 0:02:17]} 26. Qd2 {[%clk 0:01:33.8]} 26... Rfe7 {[%clk
0:02:16.1]} 27. Qf4 {[%clk 0:01:29.3]} 27... Nb4 {[%clk 0:02:09.8]} 28. Bc3
{[%clk 0:01:23.4]} 28... Nc6 {[%clk 0:01:56.6]} 29. h4 {[%clk 0:01:16.5]} 29...
Nd8 {[%clk 0:01:55.8]} 30. Bxa5 {[%clk 0:01:12.1]} 30... Ne6 {[%clk 0:01:49.6]}
31. Qd2 {[%clk 0:01:08.4]} 31... Nxc5 {[%clk 0:01:47.6]} 32. dxc5 {[%clk
0:00:57.9]} 32... Bxa1 {[%clk 0:01:48.5]} 33. Nxc7 {[%clk 0:00:57.8]} 33... Re1+
{[%clk 0:01:45.3]} 34. Kh2 {[%clk 0:00:56.2]} 34... Be5+ {[%clk 0:01:44.9]} 35.
g3 {[%clk 0:00:54.2]} 35... Bxc7 {[%clk 0:01:44.9]} 36. Bxd5+ {[%clk 0:00:49]}
36... Kf8 {[%clk 0:01:34.6]} 37. Qh6+ {[%clk 0:00:32.8]} 37... Qg7 {[%clk
0:01:31.6]} 38. Qxg7+ {[%clk 0:00:31.7]} 38... Kxg7 {[%clk 0:01:32.5]} 39. Bxc7
{[%clk 0:00:31.2]} 39... R8e2 {[%clk 0:01:26]} 40. Kg2 {[%clk 0:00:21.8]} 40...
Rc1 {[%clk 0:01:25.3]} 41. Bc4 {[%clk 0:00:09.1]} 41... Rxc4 {[%clk 0:01:20.7]}
42. bxc4 {[%clk 0:00:09.1]} 42... Rc2 {[%clk 0:01:21.6]} 43. Bb6 {[%clk
0:00:01.1]} 43... Rxc4 {[%clk 0:01:19.7]} 44. a5 {[%clk 0:00:01.7]} 44... Kf6
{[%clk 0:01:18.5]} 45. Kf3 {[%clk 0:00:01.5]} 45... Ke5 {[%clk 0:01:17.5]} 46.
Ke3 {[%clk 0:00:01.9]} 46... Rc3+ {[%clk 0:01:17.6]} 47. Kd2 {[%clk 0:00:02.2]}
47... Rf3 {[%clk 0:01:12.8]} 48. Ke2 {[%clk 0:00:02.4]} 48... Ke4 {[%clk
0:01:11.6]} 49. c6 {[%clk 0:00:02.1]} 49... bxc6 {[%clk 0:01:11.7]} 50. a6
{[%clk 0:00:02.7]} 50... Ra3 {[%clk 0:01:11.5]} 51. a7 {[%clk 0:00:03.2]} 51...
Kd5 {[%clk 0:01:06.8]} 52. Kd2 {[%clk 0:00:03.3]} 52... c5 {[%clk 0:01:07.2]}
53. Kc2 {[%clk 0:00:03.5]} 53... Kc6 {[%clk 0:01:07.3]} 54. Bd8 {[%clk
0:00:02.6]} 54... Rxa7 {[%clk 0:01:07.1]} 55. Bf6 {[%clk 0:00:02.5]} 55... Ra2+
{[%clk 0:01:06.9]} 56. Bb2 {[%clk 0:00:03.1]} 56... Kd5 {[%clk 0:01:06.5]} 57.
Kb3 {[%clk 0:00:04]} 57... Rxb2+ {[%clk 0:01:06.8]} 58. Kxb2 {[%clk 0:00:04.3]}
58... Ke4 {[%clk 0:01:07.7]} 59. Kc3 {[%clk 0:00:04.8]} 59... Kf3 {[%clk
0:01:08.2]} 60. Kc4 {[%clk 0:00:05.7]} 60... Kxf2 {[%clk 0:01:08.6]} 61. Kxc5
{[%clk 0:00:06.6]} 61... Kxg3 {[%clk 0:01:09.1]} 62. Kd4 {[%clk 0:00:07.5]} 0-1